fUSD/lending_fUSD_20241117
["ID","MTS","AMOUNT","RATE_DAILY","PERIOD"]
[342433017,1731859832973,-263.6404,9.8e-05,2]
[342433018,1731859832983,-2893.2062,9.8e-05,2]
[342433019,1731859832993,-300.0,9.8e-05,3]
[342433020,1731859833004,-9122.5432,9.8e-05,2]
[342433021,1731859833014,-2500.0,9.8e-05,2]
[342433022,1731859833024,-9588.0,9.801e-05,2]
[342433023,1731859833034,-150.0,9.803e-05,2]
[342433024,1731859833043,-1500.0,9.805e-05,2]
[342433025,1731859833053,-1500.0,9.807e-05,2]
[342433026,1731859833065,-150.0,9.811e-05,2]
[342433027,1731859833074,-150.0,9.823e-05,2]
[342433028,1731859833084,-1500.0,9.827e-05,2]
[342433029,1731859833096,-150.0,9.829e-05,2]
[342433030,1731859833107,-668.53894307,9.836e-05,2]
[342433031,1731859833116,-150.0,9.839e-05,2]
[342433032,1731859833127,-254.29,9.844e-05,2]
[342433033,1731859833137,-150.0,9.844e-05,2]
[342433034,1731859833148,-150.0,9.847e-05,2]
[342433035,1731859833157,-150.0,9.848e-05,2]
[342433036,1731859833167,-150.0,9.852e-05,2]
[342433037,1731859833177,-150.0,9.858e-05,2]
[342433038,1731859833186,-1000.0,9.873e-05,2]
[342433039,1731859833196,-150.0,9.874e-05,2]
[342433040,1731859833206,-1000.0,9.89e-05,2]
[342433041,1731859833216,-1500.0,9.899e-05,2]
[342433042,1731859833515,-1000.0,9.9e-05,2]
[342433043,1731859833525,-5000.0,9.9e-05,2]
[342433044,1731859833536,-1122.87529714,9.9e-05,2]
[342433045,1731859833546,-500.0,9.9e-05,2]
[342433046,1731859833556,-37873.4214,9.9e-05,2]
[342433047,1731859833566,-3443.5677,9.9e-05,2]
[342433048,1731859833576,-11282.693,9.9e-05,2]
[342433049,1731859833585,-16037.7818,9.9e-05,2]
[342433050,1731859833595,-48690.4776,9.9e-05,2]
[342433051,1731859833605,-17704.0873,9.9e-05,2]
[342433052,1731859833614,-700.0,9.9e-05,3]
[342433053,1731859833624,-1000.0,9.9e-05,2]
[342433054,1731859833634,-150.0,9.902e-05,2]
[342433055,1731859833644,-150.0,9.905e-05,2]
[342433056,1731859833654,-150.0,9.907e-05,2]
[342433057,1731859833664,-150.0,9.911e-05,2]
[342433058,1731859833680,-150.0,9.911e-05,2]
[342433059,1731859833690,-150.0,9.914e-05,2]
[342433060,1731859833701,-150.0,9.917e-05,2]
[342433061,1731859833712,-150.0,9.923e-05,2]
[342433062,1731859833725,-150.0,9.925e-05,2]
[342433063,1731859833735,-1000.0,9.928e-05,2]
[342433064,1731859833744,-150.0,9.93e-05,2]
[342433065,1731859833755,-150.0,9.931e-05,2]
[342433066,1731859833765,-1500.0,9.946e-05,2]
[342433067,1731859833775,-150.0,9.961e-05,2]
[342433068,1731859833785,-150.0,9.961e-05,2]
[342433069,1731859833794,-150.0,9.967e-05,2]
[342433070,1731859833806,-150.0,9.97e-05,2]
[342433071,1731859833815,-150.0,9.97e-05,2]
[342433072,1731859833825,-323.33690313,9.973e-05,2]
[342433073,1731859833835,-500.21366048,9.973e-05,2]
[342433074,1731859833845,-500.49023213,9.973e-05,2]
[342433075,1731859833854,-500.0,9.973e-05,2]
[342433076,1731859833863,-503.2939556,9.973e-05,2]
[342433077,1731859833873,-500.0,9.973e-05,2]
[342433078,1731859833883,-324.59309626,9.973e-05,2]
[342433079,1731859833893,-627.13642484,9.973e-05,2]
[342433080,1731859833903,-500.0,9.973e-05,2]
[342433081,1731859833912,-465.97757672,9.973e-05,2]
[342433082,1731859833926,-500.0,9.973e-05,2]
[342433083,1731859833936,-1500.0,9.974e-05,2]
[342433084,1731859833945,-1500.0,9.978e-05,2]
[342433085,1731859833955,-353.71,9.981e-05,2]
[342433086,1731859833965,-150.0,9.984e-05,2]
[342433087,1731859833975,-5464.8613111,9.989e-05,2]
[342433088,1731859833984,-3843.046617,9.989e-05,2]
[342433089,1731859833994,-167.511,9.99e-05,2]
[342433090,1731859834003,-2026.495,9.99e-05,2]
[342433091,1731859834012,-1500.0,9.99e-05,2]
[342433092,1731859834022,-174.52978585,9.99e-05,2]
[342433093,1731859834031,-174.52978585,9.99e-05,2]
[342433094,1731859834041,-5202.3196372,9.99e-05,2]
[342433095,1731859834051,-1164.0953762,9.99e-05,2]
[342433096,1731859834060,-4585.3622352,9.993e-05,2]
[342433097,1731859834070,-3705.8631592,9.993e-05,2]
[342433098,1731859834081,-3223.3513358,9.993e-05,2]
[342433099,1731859834093,-2603.6560547,9.993e-05,2]
[342433100,1731859834102,-4366.7106661,9.993e-05,2]
[342433101,1731859834112,-1207.37771799,9.993e-05,2]
[342433102,1731859834126,-262.48322908,9.993e-05,2]
[342433103,1731859834137,-2061.24074803,9.993e-05,2]
[342433104,1731859834147,-1141.0790418,9.993e-05,2]
[342433105,1731859834157,-1118.0627074,9.993e-05,2]
[342433106,1731859834169,-2259.61750277,9.997e-05,2]
[342433107,1731859834189,-73257.87811314,9.997e-05,2]
[342433108,1731859834199,-184.86089936,9.999e-05,2]
[342433109,1731859834208,-153.73004592,9.999e-05,2]
[342433110,1731859834218,-889.47468619,9.999e-05,2]
[342433111,1731859834227,-223270.240698,0.0001,2]
[342433112,1731859834237,-5498.2418488,0.0001,2]
[342433113,1731859834247,-402561.08116655,0.0001,2]
[342433114,1731859834262,-3005.0,0.0001,2]
[342433115,1731859834274,-5391.0768465,0.0001,2]
[342433116,1731859834286,-8477.6676,0.0001,2]
[342433117,1731859834297,-669098.91344257,0.0001,2]
[342433118,1731859834309,-7687.45784206,0.0001,2]
[342433119,1731859834321,-7107.03305,0.0001,2]
[342433120,1731859834332,-3473.37189614,0.0001,2]
[342433121,1731859838134,-2825.3799,9.8e-05,2]
[342433122,1731859838358,-17981.60637572,9.8e-05,2]
[342433123,1731859838385,-4525.04866812,9.8e-05,2]
[342433124,1731859838395,-1497.4,9.8e-05,2]
[342433125,1731859838406,-1360.52295616,9.8e-05,2]
[342433126,1731859838416,-8363.35259636,0.0001,2]
[342433127,1731859838443,-316.17,0.0001,2]
[342433128,1731859838454,-1852375.23666068,0.0001,2]
[342433129,1731859838465,-120005.76333932,0.0001,2]
[342433130,1731859838476,-412.35077385,0.0001,2]
[342433131,1731859838495,-5424230.28567482,0.0001,2]
[342433132,1731859838504,-1000.0,0.0001,2]
[342433133,1731859838513,-1000.0,0.0001,2]
[342433134,1731859838522,-201.5,0.0001,2]
[342433135,1731859838531,-1000.0,0.0001,2]
[342433136,1731859838540,-1000.0,0.0001,2]
[342433137,1731859838550,-1000.0,0.0001,2]
[342433138,1731859838559,-1000.0,0.0001,2]
[342433139,1731859838568,-648500.99938452,0.0001,2]
[342433140,1731859838579,-698.5184094,0.0001,2]
[342433151,1731859840051,-451.5513,0.0001,2]
[342433152,1731859840104,-6661.25841335,0.0001,2]
[342433153,1731859840159,-628.97591,0.0001,2]
[342433154,1731859840215,-275.7,0.0001,2]
[342433155,1731859840226,-3673.2765684,0.0001,2]
[342433156,1731859840271,-2453.18289636,0.0001,2]
[342433157,1731859840328,-920.79448274,0.0001,2]
[342433158,1731859840340,-7680.72296948,0.0001,2]
[342433159,1731859840382,-3966.11640005,0.0001,2]
[342433160,1731859840445,-711.29305873,0.0001,2]
[342433161,1731859840456,-804.02101818,0.0001,2]
[342433171,1731859843147,-9772.09622773,0.0001,2]
[342433173,1731859843414,-3000.0,0.0001,2]
[342433179,1731859846060,-5675.57388188,0.0001,2]
[342433180,1731859846115,-181112.18948021,0.0001,2]
[342433181,1731859846128,-1060.21728667,0.0001,2]
[342433182,1731859846169,-1049650.00000084,0.0001,2]
[342433183,1731859846182,-892.93425058,0.0001,2]
[342433184,1731859846332,-342.5,0.0001,2]
[342433185,1731859846387,-2344.15813948,0.0001,2]
[342433186,1731859846398,-542.970506,0.0001,2]
[342433187,1731859846410,-45201.13199997,0.0001,2]
[342433188,1731859846422,-1630.90665393,0.0001,2]
[342433189,1731859846442,-1494.0,0.0001,2]
[342433622,1731860000371,500.0,0.00025,120]
[342433623,1731860011730,200.0,0.00025,120]
[342433624,1731860031965,2018.08,8.219e-05,2]
[342433627,1731860561800,534.46,0.00025,60]
[342433628,1731860607270,200.0,0.00024942,120]
[342433630,1731860685407,200.0,8.5e-05,2]
[342433631,1731860781515,2002.4,8.219e-05,2]
[342433636,1731860848696,223.24,8.475e-05,2]
[342433646,1731860914425,250.0,8.457e-05,2]
[342433656,1731860943127,1259.29,8.477e-05,2]
[342433657,1731860958687,519.14,8.475e-05,2]
[342433671,1731860999418,435.85,8.478e-05,2]
[342433678,1731861032256,-250.0,8.521e-05,2]
[342433679,1731861032266,-500.0,8.541e-05,2]
[342433680,1731861032275,-5935.03,8.579e-05,2]
[342433681,1731861032284,-23900.0,8.588e-05,2]
[342433682,1731861032294,-17452.28,8.605e-05,2]
[342433684,1731861032303,-250.0,8.636e-05,2]
[342433686,1731861032312,-827.87,8.636e-05,2]
[342433687,1731861032321,-1913.31,8.666e-05,2]
[342433688,1731861032330,-207.05,8.666e-05,2]
[342433689,1731861032340,-150.0,8.676e-05,2]
[342433690,1731861032349,-1000.0,8.677e-05,2]
[342433691,1731861032358,-207.05,8.709e-05,2]
[342433692,1731861032367,-435.2,8.728e-05,2]
[342433693,1731861032376,-150.0,9e-05,2]
[342433694,1731861032385,-800.0,9e-05,3]
[342433695,1731861032394,-763.76,9.041e-05,2]
[342433696,1731861032403,-432.97,9.041e-05,2]
[342433697,1731861032414,-763.76,9.041e-05,2]
[342433698,1731861032423,-432.97,9.041e-05,2]
[342433699,1731861032432,-763.76,9.041e-05,2]
[342433700,1731861032441,-432.97,9.041e-05,2]
[342433701,1731861032451,-432.97,9.041e-05,2]
[342433702,1731861032460,-763.76,9.041e-05,2]
[342433703,1731861032469,-432.97,9.041e-05,2]
[342433704,1731861032479,-763.76,9.041e-05,2]
[342433705,1731861032489,-432.97,9.041e-05,2]
[342433706,1731861032499,-763.76,9.041e-05,2]
[342433707,1731861032509,-432.97,9.041e-05,2]
[342433708,1731861032518,-763.76,9.041e-05,2]
[342433709,1731861032527,-432.97,9.041e-05,2]
[342433710,1731861032536,-258.51,9.041e-05,2]
[342433711,1731861032546,-432.97,9.041e-05,2]
[342433712,1731861032555,-432.97,9.041e-05,2]
[342433713,1731861032564,-432.97,9.041e-05,2]
[342433714,1731861032573,-432.97,9.041e-05,2]
[342433715,1731861032582,-432.97,9.041e-05,2]
[342433716,1731861032591,-430.73,9.041e-05,2]
[342433717,1731861032600,-1688.38667132,9.1e-05,3]
[342433718,1731861032617,-11.61332868,9.1e-05,3]
[342433719,1731861032626,-500.0,9.115e-05,2]
[342433720,1731861032635,-158.49,9.178e-05,2]
[342433721,1731861032644,-150.0,9.178e-05,2]
[342433722,1731861032653,-664.24,9.178e-05,2]
[342433723,1731861032664,-152.84,9.178e-05,2]
[342433724,1731861032673,-217.1092033,9.178e-05,2]
[342433725,1731861032684,-145.3507967,9.178e-05,2]
[342433726,1731861032694,-151.84,9.178e-05,2]
[342433727,1731861032704,-150.0,9.178e-05,2]
[342433728,1731861032715,-362.46,9.178e-05,2]
[342433729,1731861032725,-150.0,9.178e-05,2]
[342433730,1731861032734,-150.0,9.178e-05,2]
[342433731,1731861032743,-150.0,9.178e-05,2]
[342433732,1731861032752,-150.0,9.178e-05,2]
[342433733,1731861032761,-150.0,9.178e-05,2]
[342433734,1731861032770,-150.0,9.178e-05,2]
[342433735,1731861032779,-362.46,9.178e-05,2]
[342433736,1731861032788,-150.0,9.178e-05,2]
[342433737,1731861032798,-150.0,9.178e-05,2]
[342433738,1731861032806,-130.98740698,9.178e-05,2]
[342433739,1731861032828,-19.01259302,9.178e-05,2]
[342433740,1731861032838,-150.0,9.178e-05,2]
[342433741,1731861032847,-150.0,9.178e-05,2]
[342433742,1731861032857,-150.0,9.178e-05,2]
[342433743,1731861032866,-362.46,9.178e-05,2]
[342433744,1731861032875,-150.0,9.178e-05,2]
[342433745,1731861032885,-150.0,9.178e-05,2]
[342433746,1731861032895,-150.0,9.178e-05,2]
[342433747,1731861032905,-150.0,9.178e-05,2]
[342433748,1731861032916,-362.46,9.178e-05,2]
[342433749,1731861032925,-150.0,9.178e-05,2]
[342433751,1731861032934,-150.0,9.178e-05,2]
[342433752,1731861032944,-362.46,9.178e-05,2]
[342433753,1731861032953,-150.0,9.178e-05,2]
[342433754,1731861032963,-362.46,9.178e-05,2]
[342433755,1731861032972,-362.46,9.178e-05,2]
[342433756,1731861032982,-362.46,9.178e-05,2]
[342433757,1731861032992,-150.0,9.178e-05,2]
[342433758,1731861033001,-362.46,9.178e-05,2]
[342433759,1731861033011,-362.46,9.178e-05,2]
[342433760,1731861033021,-362.46,9.178e-05,2]
[342433761,1731861033030,-362.46,9.178e-05,2]
[342433762,1731861033039,-362.46,9.178e-05,2]
[342433763,1731861033048,-362.46,9.178e-05,2]
[342433764,1731861033058,-273.9411362,9.18e-05,2]
[342433765,1731861033067,-2600.0,9.2e-05,3]
[342433766,1731861033077,-166.84,9.243e-05,2]
[342433767,1731861033092,-3500.0,9.3e-05,3]
[342433768,1731861033101,-150.0,9.365e-05,2]
[342433769,1731861033110,-4400.0,9.4e-05,3]
[342433770,1731861033120,-300.0,9.452e-05,2]
[342433771,1731861033130,-800.0,9.5e-05,3]
[342433772,1731861033140,-150.0,9.543e-05,2]
[342433773,1731861033149,-800.0,9.6e-05,3]
[342433774,1731861033160,-1000.0,9.663e-05,2]
[342433775,1731861033171,-150.99,9.67e-05,2]
[342433776,1731861033181,-189.99,9.67e-05,2]
[342433777,1731861033190,-34596.5952,9.7e-05,2]
[342433778,1731861033201,-3819.1867,9.7e-05,2]
[342433779,1731861033211,-800.0,9.7e-05,3]
[342433780,1731861033220,-2340.1964,9.7e-05,2]
[342433781,1731861033229,-1000.0,9.7e-05,2]
[342433782,1731861033239,-150.0,9.72e-05,2]
[342433783,1731861033248,-150.0,9.726e-05,2]
[342433784,1731861033258,-150.0,9.727e-05,2]
[342433785,1731861033267,-1500.0,9.736e-05,2]
[342433786,1731861033276,-150.0,9.737e-05,2]
[342433787,1731861033286,-150.0,9.756e-05,2]
[342433788,1731861033295,-150.0,9.756e-05,2]
[342433789,1731861033304,-150.0,9.756e-05,2]
[342433790,1731861033314,-1000.0,9.761e-05,2]
[342433791,1731861033324,-150.0,9.765e-05,2]
[342433792,1731861033333,-150.0,9.788e-05,2]
[342433793,1731861033342,-150.0,9.789e-05,2]
[342433794,1731861033351,-150.0,9.791e-05,2]
[342433795,1731861033360,-150.0,9.793e-05,2]
[342433796,1731861033370,-14712.5498,9.8e-05,2]
[342433797,1731861033380,-50882.3009,9.8e-05,2]
[342433798,1731861033390,-500.0,9.8e-05,2]
[342433799,1731861033399,-1000.0,9.8e-05,2]
[342433800,1731861033410,-37623.85274662,9.8e-05,2]
[342433801,1731861033430,-2270.00493466,9.8e-05,2]
[342433802,1731861033450,-2772.81914242,9.8e-05,2]
[342433803,1731861033461,-235438.1599763,9.8e-05,2]
[342433804,1731861033470,-1480.955,9.8e-05,2]
[342433805,1731861033479,-800.0,9.8e-05,3]
[342433806,1731861033489,-1000.0,9.8e-05,2]
[342433807,1731861033498,-150.0,9.801e-05,2]
[342433808,1731861033507,-150.0,9.808e-05,2]
[342433809,1731861033517,-150.0,9.808e-05,2]
[342433810,1731861033526,-150.0,9.808e-05,2]
[342433811,1731861033536,-150.0,9.816e-05,2]
[342433812,1731861033545,-435.2,9.819e-05,2]
[342433813,1731861033554,-1500.0,9.819e-05,2]
[342433814,1731861033564,-150.0,9.832e-05,2]
[342433815,1731861033573,-150.0,9.836e-05,2]
[342433816,1731861033583,-1500.0,9.837e-05,2]
[342433817,1731861033592,-150.0,9.846e-05,2]
[342433818,1731861033601,-150.0,9.847e-05,2]
[342433819,1731861033610,-150.0,9.851e-05,2]
[342433820,1731861033620,-1500.0,9.858e-05,2]
[342433821,1731861033629,-150.0,9.858e-05,2]
[342433822,1731861033638,-150.0,9.86e-05,2]
[342433823,1731861033647,-150.0,9.864e-05,2]
[342433824,1731861033657,-150.0,9.869e-05,2]
[342433825,1731861033668,-150.0,9.876e-05,2]
[342433826,1731861033678,-150.0,9.892e-05,2]
[342433827,1731861033687,-150.0,9.894e-05,2]
[342433828,1731861033697,-150.0,9.899e-05,2]
[342433829,1731861033706,-1000.0,9.9e-05,2]
[342433830,1731861033715,-1000.0,9.9e-05,2]
[342433831,1731861033724,-1000.0,9.9e-05,2]
[342433832,1731861033734,-1000.0,9.9e-05,2]
[342433833,1731861033743,-1000.0,9.9e-05,2]
[342433834,1731861033753,-1062.0,9.9e-05,2]
[342433835,1731861033762,-1000.0,9.9e-05,3]
[342433836,1731861033772,-1000.0,9.9e-05,3]
[342433837,1731861033781,-1000.0,9.9e-05,3]
[342433838,1731861033790,-1000.0,9.9e-05,3]
[342433839,1731861033799,-1000.0,9.9e-05,2]
[342433840,1731861033808,-1532.0,9.9e-05,3]
[342433841,1731861033817,-1403.0,9.9e-05,3]
[342433842,1731861033826,-150.0,9.903e-05,2]
[342433843,1731861033835,-150.0,9.904e-05,2]
[342433844,1731861033845,-150.0,9.912e-05,2]
[342433845,1731861033854,-150.0,9.916e-05,2]
[342433846,1731861033863,-150.0,9.924e-05,2]
[342433847,1731861033872,-150.0,9.926e-05,2]
[342433848,1731861033881,-1500.0,9.927e-05,2]
[342433849,1731861033890,-150.0,9.929e-05,2]
[342433850,1731861033899,-1500.0,9.934e-05,2]
[342433851,1731861033912,-150.0,9.935e-05,2]
[342433852,1731861033921,-1500.0,9.938e-05,2]
[342433853,1731861033930,-1500.0,9.94e-05,2]
[342433854,1731861033940,-150.0,9.945e-05,2]
[342433855,1731861033948,-150.0,9.947e-05,2]
[342433856,1731861033957,-150.0,9.947e-05,2]
[342433857,1731861033967,-1500.0,9.949e-05,2]
[342433858,1731861033977,-150.0,9.953e-05,2]
[342433859,1731861033986,-150.0,9.961e-05,2]
[342433860,1731861033996,-150.0,9.962e-05,2]
[342433861,1731861034005,-150.0,9.97e-05,2]
[342433862,1731861034015,-583.0,9.973e-05,2]
[342433863,1731861034024,-1500.0,9.975e-05,2]
[342433864,1731861034033,-150.0,9.979e-05,2]
[342433865,1731861034041,-150.0,9.982e-05,2]
[342433866,1731861034050,-1990.39,9.983e-05,2]
[342433867,1731861034059,-167.512,9.983e-05,2]
[342433868,1731861034068,-150.0,9.983e-05,2]
[342433869,1731861034079,-150.0,9.984e-05,2]
[342433870,1731861034091,-2353.5373003,9.989e-05,2]
[342433871,1731861034101,-3308.8720608,9.989e-05,2]
[342433872,1731861034110,-150.0,9.99e-05,2]
[342433873,1731861034120,-150.0,9.992e-05,2]
[342433874,1731861034130,-2206.6994566,9.993e-05,2]
[342433875,1731861034139,-2059.8616129,9.993e-05,2]
[342433876,1731861034148,-1913.0237692,9.993e-05,2]
[342433877,1731861034157,-150.0,9.993e-05,2]
[342433878,1731861034172,-3102.4306169,9.993e-05,2]
[342433879,1731861034181,-2895.989173,9.993e-05,2]
[342433880,1731861034190,-2689.5477291,9.993e-05,2]
[342433881,1731861034199,-1500.0,9.996e-05,2]
[342433882,1731861034209,-333.55300732,9.999e-05,2]
[342433883,1731861034218,-1047.09000697,9.999e-05,2]
[342433891,1731861038391,-500.0,9.115e-05,2]
[342433892,1731861038401,-452.90999303,9.999e-05,2]
[342433893,1731861038411,-247677.61493114,0.0001,2]
[342433894,1731861038420,-5223.32975636,0.0001,2]
[342433895,1731861038430,-5825078.93037881,0.0001,2]
[342433896,1731861038450,-1670.07499393,0.0001,2]
[342433897,1731861038622,-1364.85010457,0.0001,2]
[342433898,1731861038681,-4367.05411923,0.0001,2]
[342433899,1731861038693,-1001.07128722,0.0001,2]
[342433900,1731861038803,-904415.15478723,0.0001,2]
[342433901,1731861038817,-191925.98802738,0.0001,2]
[342433947,1731861040198,-566.3164432,0.0001,2]
[342433948,1731861040210,-41580.98024289,0.0001,2]
[342433954,1731861040314,-2442.1030435,0.0001,2]
[342433955,1731861040326,-288.15845002,0.0001,2]
[342433956,1731861040373,-6116.93552519,0.0001,2]
[342433960,1731861043308,-4995.92118176,0.0001,2]
[342433961,1731861043476,-3014.92530233,0.0001,2]
[342433985,1731861046304,-664.54021667,0.0001,2]
[342433986,1731861046391,-562.37553563,0.0001,2]
[342433987,1731861046403,-739.16,0.0001,2]
[342433988,1731861046427,-37558.46387185,0.0001,2]
[342433989,1731861046457,-3345.8267,0.0001,2]
[342433990,1731861046469,-4833.89999999,0.0001,2]
[342433991,1731861163018,1018.27,0.00025,60]
[342433992,1731861163283,1018.27,0.00025,60]
[342433993,1731861163557,1018.27,0.00025,60]
[342433994,1731861166441,1018.27,0.00025,60]
[342433995,1731861166865,1018.27,0.00025,60]
[342433996,1731861166985,1018.27,0.00025,60]
[342433997,1731861167265,1018.27,0.00025,60]
[342433998,1731861167531,1018.27,0.00025,60]
[342433999,1731861167798,1018.27,0.00025,60]
[342434000,1731861168131,1018.27,0.00025,60]
[342434001,1731861168444,1018.27,0.00025,60]
[342434002,1731861168763,1018.27,0.00025,60]
[342434003,1731861169034,1018.27,0.00025,60]
[342434004,1731861169329,1018.27,0.00025,60]
[342434005,1731861169625,1018.27,0.00025,60]
[342434006,1731861169898,1018.27,0.00025,60]
[342434007,1731861170177,1018.27,0.00025,60]
[342434008,1731861170449,1018.27,0.00025,60]
[342434009,1731861170716,1018.27,0.00025,60]
[342434010,1731861171028,1018.27,0.00025,60]
[342434011,1731861171331,1018.27,0.00025,60]
[342434012,1731861171627,1018.27,0.00025,60]
[342434013,1731861171892,1018.27,0.00025,60]
[342434014,1731861172152,1018.44917744,0.00025,60]
[342434015,1731861208113,500.0,0.00025,60]
[342434016,1731861208608,500.0,0.00025,60]
[342434017,1731861208673,500.0,0.00025,60]
[342434018,1731861208947,500.0,0.00025,60]
[342434019,1731861209217,500.0,0.00025,60]
[342434020,1731861209513,500.0,0.00025,60]
[342434021,1731861209770,500.0,0.00025,60]
[342434022,1731861210030,500.0,0.00025,60]
[342434023,1731861210312,500.0,0.00025,60]
[342434024,1731861210566,170.96688236,0.00025,60]
[342434026,1731861298814,48710.51876721,0.00025,60]
[342434027,1731861423470,1902.28,8.219e-05,2]
[342434028,1731861565517,300.0,0.00025,60]
[342434029,1731861615229,500.0,0.00025,60]
[342434030,1731861615506,500.0,0.00025,60]
[342434031,1731861615802,500.0,0.00025,60]
[342434032,1731861616078,500.0,0.00025,60]
[342434033,1731861616332,500.0,0.00025,60]
[342434034,1731861616581,500.0,0.00025,60]
[342434035,1731861616885,500.0,0.00025,60]
[342434036,1731861617154,500.0,0.00025,60]
[342434037,1731861617420,500.0,0.00025,60]
[342434038,1731861617693,500.0,0.00025,60]
[342434039,1731861617981,620.77451471,0.00025,60]
[342434040,1731861621706,500.0,0.00025,60]
[342434041,1731861621972,500.0,0.00025,60]
[342434042,1731861622254,500.0,0.00025,60]
[342434043,1731861622516,500.0,0.00025,60]
[342434044,1731861622790,500.0,0.00025,60]
[342434045,1731861623039,500.0,0.00025,60]
[342434046,1731861623306,500.0,0.00025,60]
[342434047,1731861623559,500.0,0.00025,60]
[342434048,1731861623826,500.0,0.00025,60]
[342434049,1731861624253,500.0,0.00025,60]
[342434050,1731861624345,500.0,0.00025,60]
[342434051,1731861624829,631.33843632,0.00025,60]
[342434052,1731861797440,500.0,0.0002494,120]
[342434053,1731861939054,737.09,0.00025,60]
[342434054,1731861939316,737.09,0.00025,60]
[342434055,1731861939606,737.09,0.00025,60]
[342434056,1731861939861,737.09,0.00025,60]
[342434057,1731861940107,737.09,0.00025,60]
[342434058,1731861940385,737.09,0.00025,60]
[342434059,1731861940642,737.09,0.00025,60]
[342434060,1731861940916,737.09,0.00025,60]
[342434061,1731861941148,737.09,0.00025,60]
[342434062,1731861941419,737.09,0.00025,60]
[342434063,1731861941883,737.09,0.00025,60]
[342434064,1731861942131,737.09,0.00025,60]
[342434065,1731861942394,737.09,0.00025,60]
[342434066,1731861942557,500.0,0.00025,60]
[342434067,1731861942663,737.09,0.00025,60]
[342434068,1731861942829,500.0,0.00025,60]
[342434069,1731861943094,500.0,0.00025,60]
[342434070,1731861943145,737.09,0.00025,60]
[342434071,1731861943356,737.09,0.00025,60]
[342434072,1731861943404,500.0,0.00025,60]
[342434073,1731861943614,737.09,0.00025,60]
[342434074,1731861943664,500.0,0.00025,60]
[342434075,1731861943870,737.09,0.00025,60]
[342434076,1731861943924,500.0,0.00025,60]
[342434077,1731861944136,737.09,0.00025,60]
[342434078,1731861944186,502.35691255,0.00025,60]
[342434079,1731861944399,737.09,0.00025,60]
[342434080,1731861944663,737.09,0.00025,60]
[342434081,1731861944927,737.09,0.00025,60]
[342434082,1731861945186,737.09,0.00025,60]
[342434083,1731861945483,737.32878201,0.00025,60]
[342434084,1731861952329,500.0,0.00025,60]
[342434085,1731861952689,500.0,0.00025,60]
[342434086,1731861952995,500.0,0.00025,60]
[342434087,1731861953275,500.0,0.00025,60]
[342434088,1731861953563,500.0,0.00025,60]
[342434089,1731861953839,500.0,0.00025,60]
[342434090,1731861954103,500.0,0.00025,60]
[342434091,1731861954508,500.0,0.00025,60]
[342434092,1731861954753,500.0,0.00025,60]
[342434093,1731861955003,500.0,0.00025,60]
[342434094,1731861955327,500.0,0.00025,60]
[342434095,1731861955593,500.0,0.00025,60]
[342434096,1731861955848,500.0,0.00025,60]
[342434097,1731861956134,500.0,0.00025,60]
[342434098,1731861956401,500.0,0.00025,60]
[342434099,1731861956663,500.0,0.00025,60]
[342434100,1731861957029,500.0,0.00025,60]
[342434101,1731861957163,500.0,0.00025,60]
[342434102,1731861957466,500.0,0.00025,60]
[342434103,1731861957712,500.0,0.00025,60]
[342434104,1731861958056,435.34757329,0.00025,60]